bitfinex/quotes_BTCUSD_20250109
["timestamp","ask_amount","ask_price","bid_price","bid_amount"]
[1736428550602,0.00214991,93205.0,93204.0,0.66680276]
[1736428551014,0.00214991,93205.0,93204.0,0.77110252]
[1736428552672,0.00214991,93205.0,93204.0,0.76318252]
[1736428552879,0.0001704,93242.0,93236.0,0.214509]
[1736428553105,0.00067234,93242.0,93238.0,0.214504]
[1736428553522,0.00067234,93242.0,93237.0,0.11221976]
[1736428553925,0.00067234,93242.0,93238.0,0.214504]
[1736428554131,0.00167234,93242.0,93237.0,0.11221976]
[1736428554563,0.00467234,93242.0,93237.0,0.11221976]
[1736428554765,0.00467234,93242.0,93237.0,0.32672476]
[1736428555330,0.00467234,93242.0,93238.0,0.214504]
[1736428555652,0.00467234,93242.0,93240.0,0.2145]
[1736428555854,0.00467234,93242.0,93241.0,0.10429976]
[1736428556055,0.00167234,93242.0,93241.0,0.10429976]
[1736428556417,0.00067234,93242.0,93241.0,0.10429976]
[1736428556623,0.00067234,93242.0,93235.0,0.21451]
[1736428556830,0.00367234,93242.0,93236.0,0.00792]
[1736428557264,0.21516934,93242.0,93236.0,0.00792]
[1736428557484,0.21516934,93242.0,93230.0,0.21452]
[1736428557485,0.00067234,93242.0,93237.0,0.11221976]
[1736428557702,0.00167234,93242.0,93241.0,0.007]
[1736428557901,0.00167234,93242.0,93241.0,0.11529976]
[1736428558567,0.00167234,93242.0,93241.0,0.11129976]
[1736428558999,0.00067234,93242.0,93241.0,0.17989976]
[1736428559188,0.00067234,93242.0,93241.0,0.18097211]
[1736428559446,0.00367234,93242.0,93241.0,0.18097211]
[1736428559650,0.00067234,93242.0,93241.0,0.17989976]
[1736428560064,0.00167234,93242.0,93241.0,0.23637211]
[1736428560260,0.00067234,93242.0,93241.0,0.22829976]
[1736428560665,0.00167234,93242.0,93241.0,0.23529976]
[1736428561283,0.00167234,93242.0,93241.0,0.01492]
[1736428561495,0.00167234,93242.0,93241.0,0.01892]
[1736428562109,0.00167234,93242.0,93241.0,0.33771676]
[1736428562315,0.00167234,93242.0,93241.0,0.33371676]
[1736428562742,0.00067234,93242.0,93241.0,0.32671676]
[1736428562952,0.00067234,93242.0,93241.0,0.38283924]
[1736428563370,0.00067234,93242.0,93241.0,0.38083924]
[1736428563577,0.00167234,93242.0,93241.0,0.33271676]
[1736428563782,0.00167234,93242.0,93241.0,0.33471676]
[1736428563998,0.00067234,93242.0,93241.0,0.32871676]
[1736428564199,0.00057872,93242.0,93241.0,0.32871676]
[1736428564404,0.00157872,93242.0,93241.0,0.33471676]
[1736428564603,0.00157872,93242.0,93241.0,0.33271676]
[1736428565023,0.00157872,93242.0,93241.0,0.51889004]
[1736428565224,0.00157872,93242.0,93241.0,0.74889004]
[1736428565432,0.9649857,93250.0,93249.0,0.491679]
[1736428565660,0.96513613,93250.0,93249.0,0.59597876]
[1736428566496,0.96513613,93250.0,93249.0,0.64107876]
[1736428566704,0.96513613,93250.0,93249.0,0.70740358]
[1736428567784,0.96613613,93250.0,93249.0,0.71340358]
[1736428568210,0.96613613,93250.0,93249.0,0.86340358]
[1736428568811,0.96613613,93250.0,93249.0,0.86940358]
[1736428569433,0.88803613,93250.0,93249.0,0.86940358]
[1736428569679,0.88803613,93250.0,93249.0,0.88641376]
[1736428569890,0.81179026,93250.0,93249.0,0.88641376]
[1736428570381,0.71224226,93250.0,93249.0,1.03681376]
[1736428570573,0.55974416,93250.0,93249.0,0.96448894]
[1736428570789,0.56374416,93250.0,93249.0,0.96448894]
[1736428571224,0.44551563,93250.0,93249.0,0.95848894]
[1736428571428,0.31884702,93250.0,93249.0,0.98148894]
[1736428571672,0.32284702,93250.0,93249.0,0.98248894]
[1736428571837,0.00705102,93250.0,93249.0,0.86018894]
[1736428572071,2e-08,93250.0,93249.0,0.86018894]
[1736428572271,0.1125,93268.0,93267.0,0.564438]
[1736428572476,0.1125,93268.0,93267.0,0.67661776]
[1736428572677,0.11255011,93268.0,93267.0,0.67661776]
[1736428574121,0.11655011,93268.0,93267.0,0.67761776]
[1736428574684,0.11655011,93268.0,93267.0,0.66973776]
[1736428574890,0.11655011,93268.0,93267.0,0.52861776]
[1736428575714,0.11655011,93268.0,93267.0,0.32761776]
[1736428575918,0.11255011,93268.0,93267.0,0.32661776]
[1736428576115,0.11255011,93268.0,93267.0,0.41873776]
[1736428576334,0.11255011,93268.0,93267.0,0.33561776]
[1736428576535,0.11255011,93268.0,93267.0,0.32661776]
[1736428576917,0.11255011,93268.0,93267.0,0.32761776]
[1736428577127,0.19435011,93268.0,93267.0,0.31873776]
[1736428577324,0.19435011,93268.0,93267.0,0.32661776]
[1736428577526,0.19435011,93268.0,93267.0,0.12017976]
[1736428577766,0.18935011,93268.0,93267.0,0.12017976]
[1736428577972,0.23785011,93268.0,93267.0,0.11217976]
[1736428578106,0.23785011,93268.0,93267.0,0.10429976]
[1736428578328,0.23785011,93268.0,93267.0,0.11217976]
[1736428579147,0.23885011,93268.0,93267.0,0.11817976]
[1736428579347,0.23985011,93268.0,93267.0,0.12717976]
[1736428579547,0.23885011,93268.0,93267.0,0.01388]
[1736428579854,0.23985011,93268.0,93267.0,0.01988]
[1736428580062,0.23985011,93268.0,93267.0,0.11629976]
[1736428580268,0.23885011,93268.0,93267.0,0.33261776]
[1736428580642,0.23785011,93268.0,93267.0,0.32961776]
[1736428581061,0.18935011,93268.0,93267.0,0.32661776]
[1736428581288,0.20908701,93287.0,93267.0,0.11217976]
[1736428581487,5.011e-05,93280.0,93277.0,0.214414]
[1736428581831,5.011e-05,93280.0,93279.0,0.21441]
[1736428582068,5.011e-05,93280.0,93279.0,0.31870976]
[1736428582923,5.011e-05,93280.0,93279.0,0.10429976]
[1736428583130,5.011e-05,93280.0,93279.0,0.00788]
[1736428584168,5.011e-05,93280.0,93279.0,0.32658976]
[1736428584376,0.07695011,93280.0,93279.0,0.32658976]
[1736428584576,0.07695011,93280.0,93279.0,0.33158976]
[1736428584820,0.07695011,93280.0,93279.0,0.32658976]
[1736428585022,5.011e-05,93280.0,93279.0,0.32658976]
[1736428585229,5.011e-05,93280.0,93279.0,0.42958976]
[1736428585651,5.011e-05,93280.0,93279.0,0.52658976]
[1736428587381,0.00105011,93280.0,93279.0,0.70858976]
[1736428587603,0.00105011,93280.0,93279.0,0.74190652]
[1736428587805,5.011e-05,93280.0,93279.0,0.75280877]
[1736428588006,1.1e-07,93280.0,93279.0,0.72049201]
[1736428588220,1.1e-07,93280.0,93279.0,0.75080857]
[1736428588625,1.1e-07,93280.0,93279.0,0.79870857]
[1736428589056,0.0001704,93298.0,93287.0,0.564392]
[1736428589261,0.0001704,93298.0,93287.0,0.69169176]
[1736428589842,0.0001704,93298.0,93287.0,0.32657176]
[1736428589843,0.0783,93293.0,93287.0,0.32657176]
[1736428590045,0.0783,93293.0,93287.0,0.61359428]
[1736428590596,0.0041704,93288.0,93287.0,0.61459428]
[1736428590812,0.0041704,93288.0,93287.0,0.32757176]
[1736428591676,0.0051704,93288.0,93287.0,0.32857176]
[1736428592004,0.0051704,93288.0,93287.0,0.32069176]
[1736428592210,0.0051704,93288.0,93287.0,0.32857176]
[1736428593086,0.0051704,93288.0,93287.0,0.52857176]
[1736428593287,0.0051704,93288.0,93287.0,0.55157176]
[1736428593701,0.0051704,93288.0,93287.0,0.58489646]
[1736428594335,0.0011704,93288.0,93287.0,0.58389646]
[1736428594541,0.0001704,93288.0,93287.0,0.73289646]
[1736428594734,0.0001704,93288.0,93287.0,0.73389646]
[1736428594952,0.0011704,93288.0,93287.0,0.73489646]
[1736428595370,0.0001704,93288.0,93287.0,0.73389646]
[1736428595788,0.0011704,93288.0,93287.0,0.73489646]
[1736428595991,0.0011704,93288.0,93287.0,0.73389646]
[1736428596415,0.0021704,93288.0,93287.0,0.73489646]
[1736428598310,4e-07,93288.0,93287.0,0.73489646]
[1736428599586,0.0001704,93298.0,93297.0,0.2]
[1736428599791,0.0001704,93298.0,93297.0,0.57499346]
[1736428600823,0.0001704,93298.0,93297.0,0.72499346]
[1736428601206,0.0011704,93298.0,93297.0,0.72599346]
[1736428602051,0.0011704,93298.0,93297.0,0.72699346]
[1736428602268,4e-07,93298.0,93297.0,0.72699346]
[1736428602883,0.0818,93321.0,93306.0,0.414348]
[1736428603120,0.0818,93321.0,93306.0,0.57497246]
[1736428603359,0.0818,93321.0,93306.0,0.45197246]
[1736428603663,0.2144496,93336.0,93306.0,0.45197246]
[1736428603664,0.1251704,93307.0,93306.0,0.31864776]
[1736428604019,0.1251704,93307.0,93306.0,0.32756776]
[1736428604419,0.1251704,93307.0,93306.0,0.31964776]
[1736428604647,0.1251704,93307.0,93306.0,0.32756776]
[1736428604861,0.1251704,93307.0,93306.0,0.33656776]
[1736428605175,0.1251704,93307.0,93306.0,0.32656776]
[1736428605378,0.1251704,93307.0,93306.0,0.11721976]
[1736428605809,0.1251704,93307.0,93306.0,0.33156776]
[1736428606418,0.1251704,93307.0,93306.0,0.32656776]
[1736428606618,0.1261704,93307.0,93306.0,0.33556776]
[1736428606822,0.1251704,93307.0,93306.0,0.33356776]
[1736428607224,0.1261704,93307.0,93306.0,0.33556776]
[1736428607521,0.1251704,93307.0,93306.0,0.33156776]
[1736428607963,0.1261704,93307.0,93306.0,0.34056776]
[1736428608373,0.1251704,93307.0,93306.0,0.33156776]
[1736428608787,0.0001704,93307.0,93306.0,0.43156776]
[1736428609390,0.0001704,93307.0,93306.0,0.42656776]
[1736428609708,0.0011704,93307.0,93306.0,0.44056776]
[1736428610137,0.0001704,93307.0,93306.0,0.42656776]
[1736428610348,0.0081704,93307.0,93306.0,0.42756776]
[1736428610560,0.0081704,93307.0,93306.0,0.52756776]
[1736428610768,0.0001704,93307.0,93306.0,0.52656776]
[1736428610976,0.0081704,93307.0,93306.0,0.52756776]
[1736428611385,0.0001704,93307.0,93306.0,0.52656776]
[1736428611593,0.0081704,93307.0,93306.0,0.81487764]
[1736428612202,0.0464704,93330.0,93306.0,0.81487764]
[1736428612203,0.15,93340.0,93317.0,0.428646]
[1736428612412,0.15,93340.0,93318.0,0.10537111]
[1736428613022,0.15,93340.0,93319.0,0.214318]
[1736428613232,0.15,93340.0,93313.0,0.1]
[1736428613233,0.00067207,93343.0,93341.0,0.214267]
[1736428613435,0.00067207,93343.0,93320.0,0.10537111]
[1736428613436,0.00067207,93343.0,93342.0,0.00792]
[1736428614928,0.00067207,93343.0,93342.0,0.01292]
[1736428615319,0.12527207,93343.0,93342.0,0.11721976]
[1736428616304,0.12527207,93343.0,93342.0,0.12121976]
[1736428618949,0.15,93352.0,93342.0,0.12121976]
[1736428619151,0.00015037,93350.0,93342.0,0.12121976]
[1736428620117,0.00015037,93350.0,93342.0,0.11221976]
[1736428620524,0.15,93349.0,93342.0,0.11721976]
[1736428621277,0.15,93349.0,93342.0,0.11221976]
[1736428621495,0.00015037,93350.0,93342.0,0.11221976]
[1736428621700,0.00015037,93350.0,93342.0,0.11621976]
[1736428621911,0.1328,93349.0,93342.0,0.11621976]
[1736428622286,0.1328,93349.0,93343.0,0.214263]
[1736428622720,0.1328,93349.0,93347.0,0.214253]
[1736428623135,0.1328,93349.0,93344.0,0.31855876]
[1736428623350,0.1328,93349.0,93344.0,0.10429976]
[1736428623989,0.1328,93349.0,93347.0,0.006]
[1736428624409,0.1328,93349.0,93336.0,0.214278]
[1736428624410,0.2269,93343.0,93305.0,0.15028]
[1736428624611,0.214304,93326.0,93314.0,0.10429976]
[1736428624816,0.0819,93325.0,93314.0,0.32654976]
[1736428625236,0.214307,93324.0,93314.0,0.11221976]
[1736428625446,0.1125,93321.0,93314.0,0.11221976]
[1736428626508,0.1125,93321.0,93315.0,0.00792]
[1736428626684,0.1125,93321.0,93316.0,0.10429976]
[1736428626899,0.214316,93320.0,93315.0,0.00792]
[1736428627277,0.32696629,93321.0,93315.0,0.00792]
[1736428627482,0.11265029,93321.0,93316.0,0.00792]
[1736428627707,0.15,93320.0,93316.0,0.00792]
[1736428627844,0.15,93316.0,93315.0,0.014]
[1736428628048,0.15,93316.0,93315.0,0.01292]
[1736428628857,0.15,93316.0,93315.0,0.00792]
[1736428629280,0.15,93318.0,93305.0,0.15028]
[1736428629484,0.214341,93310.0,93306.0,0.00792]
[1736428629680,0.214348,93306.0,93305.0,0.15028]
[1736428629904,0.214344,93308.0,93305.0,0.15028]
[1736428630132,0.214344,93308.0,93306.0,0.00792]
[1736428630335,0.1298,93307.0,93306.0,0.00792]
[1736428630744,0.2798,93307.0,93306.0,0.00792]
[1736428631064,0.364348,93306.0,93305.0,0.009]
[1736428631266,0.364348,93306.0,93305.0,0.005]
[1736428631634,0.364348,93306.0,93305.0,0.01292]
[1736428632240,0.15,93306.0,93305.0,0.00792]
[1736428632653,0.09745831,93307.0,93305.0,0.00792]
[1736428632844,0.0822,93307.0,93305.0,0.11221976]
[1736428633043,0.15,93313.0,93305.0,0.11221976]
[1736428633294,0.15,93313.0,93306.0,0.11329976]
[1736428633522,0.15,93313.0,93306.0,0.32764576]
[1736428633728,0.15,93313.0,93306.0,0.32164576]
[1736428634110,0.0150468,93313.0,93306.0,0.10729976]
[1736428634348,0.2322,93314.0,93306.0,0.10429976]
[1736428634531,0.0822,93314.0,93307.0,0.214346]
[1736428634734,0.0822,93314.0,93308.0,0.10429976]
[1736428636165,0.01521511,93318.0,93308.0,0.10429976]
[1736428636369,0.214316,93320.0,93309.0,0.214341]
[1736428636543,0.1645374,93319.0,93310.0,0.10429976]
[1736428636766,0.15,93319.0,93310.0,0.10429976]
[1736428637354,0.36432,93319.0,93310.0,0.10429976]
[1736428637549,0.16509596,93320.0,93310.0,0.10429976]
[1736428638345,0.16509596,93320.0,93310.0,0.10829976]
[1736428638571,0.16509596,93320.0,93310.0,0.11129976]
[1736428638778,0.214332,93314.0,93310.0,0.11129976]
[1736428638984,0.214332,93314.0,93311.0,0.00792]
[1736428639182,0.214332,93314.0,93312.0,0.10429976]
[1736428639586,0.15,93316.0,93312.0,0.10429976]
[1736428639806,0.214327,93315.0,93312.0,0.10429976]
[1736428640850,0.214327,93315.0,93312.0,0.10729976]
[1736428641053,0.214327,93315.0,93312.0,0.10429976]
[1736428641261,0.214327,93315.0,93311.0,0.00792]
[1736428641262,0.428655,93315.0,93311.0,0.00792]
[1736428641478,0.15,93312.0,93311.0,0.00792]
[1736428641649,0.15,93310.0,93304.0,8.51e-05]
[1736428641853,0.15,93306.0,93305.0,0.00792]
[1736428642060,0.2272,93306.0,93305.0,0.00792]
[1736428642265,0.21435,93305.0,93304.0,0.0080051]
[1736428642847,0.21435,93305.0,93304.0,0.0090051]
[1736428643140,0.21435,93305.0,93304.0,0.0010851]
[1736428643951,0.4408848,93305.0,93304.0,0.0010851]
[1736428644160,0.36435,93305.0,93304.0,0.0010851]
[1736428644366,0.36435,93305.0,93304.0,8.51e-05]
[1736428644575,0.3788972,93305.0,93304.0,8.51e-05]
[1736428644790,0.45975113,93305.0,93304.0,8.51e-05]
[1736428645005,0.63696058,93305.0,93304.0,8.51e-05]
[1736428645211,0.74126034,93305.0,93304.0,8.51e-05]
[1736428645430,0.74080641,93305.0,93304.0,0.0010851]
[1736428645673,0.74059672,93305.0,93304.0,0.0010851]
[1736428646074,0.74059672,93305.0,93304.0,8.51e-05]
[1736428648344,0.84059672,93305.0,93304.0,8.51e-05]
[1736428648548,0.84084411,93305.0,93304.0,8.51e-05]
[1736428649161,0.84059672,93305.0,93304.0,8.51e-05]
[1736428649585,0.84059672,93305.0,93304.0,0.0010851]
[1736428649997,0.73629696,93305.0,93304.0,0.0010851]
[1736428650217,0.63629696,93305.0,93304.0,0.0010851]
[1736428650417,0.3589972,93305.0,93304.0,0.0010851]
[1736428650622,0.3092972,93305.0,93304.0,0.0010851]
[1736428650838,0.3092972,93305.0,93304.0,8.51e-05]
[1736428651219,0.4592972,93305.0,93304.0,8.51e-05]
[1736428651424,0.54809552,93305.0,93304.0,8.51e-05]
[1736428651621,0.67539528,93305.0,93304.0,8.51e-05]
[1736428652718,0.58659696,93305.0,93304.0,8.51e-05]
[1736428653142,0.4592972,93305.0,93304.0,8.51e-05]
[1736428653979,0.3788972,93305.0,93304.0,8.51e-05]
[1736428655611,0.3788972,93305.0,93304.0,0.0010851]
[1736428656019,0.3788972,93305.0,93304.0,8.51e-05]
[1736428656425,0.3788972,93305.0,93304.0,0.0010851]
[1736428657675,0.3788972,93305.0,93304.0,8.51e-05]
[1736428658043,0.3788972,93305.0,93304.0,0.0020851]
[1736428658452,0.3788972,93305.0,93304.0,8.51e-05]
[1736428659194,0.3788972,93305.0,93304.0,0.0030851]
[1736428659399,0.3788972,93305.0,93304.0,0.0020851]
[1736428659598,0.3788972,93305.0,93304.0,8.51e-05]
[1736428661004,0.3788972,93305.0,93304.0,0.0030851]
[1736428661274,0.3788972,93305.0,93304.0,0.0020851]
[1736428661482,0.3788972,93305.0,93304.0,8.51e-05]
[1736428661883,0.3788972,93305.0,93304.0,0.0010851]
[1736428662048,0.0145472,93305.0,93304.0,0.0010851]
[1736428662245,0.214337,93311.0,93304.0,8.51e-05]
[1736428662438,0.214346,93308.0,93304.0,8.51e-05]
[1736428662642,0.214346,93308.0,93304.0,0.0010851]
[1736428662976,0.428692,93308.0,93304.0,0.0010851]
[1736428664000,0.214346,93308.0,93304.0,0.0010851]
[1736428664204,0.16893852,93311.0,93304.0,0.0060851]
[1736428664409,0.16893852,93311.0,93305.0,0.10429976]
[1736428664593,0.214339,93310.0,93305.0,0.10429976]
[1736428665646,0.428678,93310.0,93305.0,0.10429976]
[1736428666082,0.428678,93310.0,93305.0,0.10729976]
[1736428666486,0.01893852,93311.0,93305.0,0.003]
[1736428666702,0.214348,93306.0,93305.0,0.003]
[1736428666909,0.364348,93306.0,93305.0,0.011]
[1736428667338,0.364348,93306.0,93305.0,0.013]
[1736428667339,0.15,93306.0,93305.0,0.013]
[1736428667554,0.15,93306.0,93305.0,0.008]
[1736428667736,0.15,93306.0,93305.0,0.011]
[1736428667943,0.15,93306.0,93305.0,0.015]
[1736428668152,0.214322,93318.0,93305.0,0.11629976]
[1736428668364,0.214322,93318.0,93306.0,0.10429976]
[1736428668532,0.15,93317.0,93306.0,0.31864776]
[1736428668749,0.15,93317.0,93306.0,0.10429976]
[1736428668948,0.15,93317.0,93309.0,0.214339]
[1736428669277,0.15,93317.0,93310.0,0.10429976]
[1736428670027,0.15,93317.0,93310.0,0.15369976]
[1736428670635,0.214322,93318.0,93310.0,0.15369976]
[1736428671899,0.214322,93318.0,93310.0,0.15669976]
[1736428672268,0.59575008,93321.0,93310.0,0.009]
[1736428672269,0.214332,93313.0,93310.0,0.009]
[1736428672582,0.428665,93313.0,93311.0,0.008]
[1736428674613,0.428665,93313.0,93312.0,0.008]
[1736428674815,0.214332,93313.0,93312.0,0.008]
[1736428675783,0.214332,93313.0,93312.0,0.011]
[1736428676213,0.214332,93313.0,93312.0,0.016]
[1736428676617,0.214326,93316.0,93312.0,0.016]
[1736428676833,0.15,93320.0,93312.0,0.12029976]
[1736428677023,0.15,93320.0,93313.0,0.214332]
[1736428677226,0.36265029,93321.0,93314.0,0.10429976]
[1736428677448,0.36265029,93321.0,93317.0,0.214321]
[1736428677616,0.36265029,93321.0,93318.0,0.10429976]
[1736428677836,0.36265029,93321.0,93319.0,0.214318]
[1736428678014,0.36265029,93321.0,93320.0,0.10429976]
[1736428679486,0.36265029,93321.0,93320.0,0.11029976]
[1736428679867,0.36265029,93321.0,93320.0,0.10429976]
[1736428680065,0.36265029,93321.0,93320.0,0.11129976]
[1736428680483,0.36265029,93321.0,93320.0,0.10429976]
[1736428680682,0.36265029,93321.0,93320.0,0.10829976]
[1736428681176,0.36265029,93321.0,93320.0,0.10429976]
[1736428681727,0.36265029,93321.0,93320.0,0.10829976]
[1736428681965,0.36265029,93321.0,93320.0,0.32961576]
[1736428682171,0.36265029,93321.0,93320.0,0.32261576]
[1736428682376,0.36265029,93321.0,93320.0,0.31861576]
[1736428682593,0.36265029,93321.0,93320.0,0.32661576]
[1736428683989,0.36265029,93321.0,93320.0,0.38041576]
[1736428686791,0.36265029,93321.0,93320.0,0.37241576]
[1736428687013,0.36248816,93321.0,93320.0,0.32261576]
[1736428687237,0.36248816,93321.0,93320.0,0.11729976]
[1736428687443,0.36248816,93321.0,93320.0,0.11329976]
[1736428687648,0.36248816,93321.0,93320.0,0.11829976]
[1736428688262,0.25015029,93321.0,93320.0,0.11329976]
[1736428688676,0.25015029,93321.0,93320.0,0.11829976]
[1736428689097,0.25015029,93321.0,93320.0,0.18039976]
[1736428689314,0.25015029,93321.0,93320.0,0.18539976]
[1736428689523,0.25015029,93321.0,93320.0,0.19439976]
[1736428689759,0.25015029,93321.0,93320.0,0.18539976]
[1736428690143,0.25015029,93321.0,93320.0,0.19439976]
[1736428690709,0.25015029,93321.0,93320.0,0.18939976]
[1736428690913,0.25015029,93321.0,93320.0,0.19539976]
[1736428691953,0.25015029,93321.0,93320.0,0.18939976]
[1736428692152,0.25015029,93321.0,93320.0,0.18639976]
[1736428692570,0.25015029,93321.0,93320.0,0.19539976]
[1736428692948,0.25015029,93321.0,93320.0,0.18639976]
[1736428693153,0.25015029,93321.0,93320.0,0.19539976]
[1736428693500,0.25015029,93321.0,93320.0,0.29539976]
[1736428693919,0.25015029,93321.0,93320.0,0.43649976]
[1736428694263,0.25015029,93321.0,93320.0,0.44449976]
[1736428694863,0.25015029,93321.0,93320.0,0.46749976]
[1736428695705,0.22871929,93321.0,93320.0,1.15429976]
[1736428695915,0.02999626,93321.0,93320.0,1.15429976]
[1736428696118,0.02999626,93321.0,93320.0,1.14529976]
[1736428696328,0.02999626,93321.0,93320.0,1.14629976]
[1736428697483,0.02999626,93321.0,93320.0,1.15425976]
[1736428697990,0.02999626,93321.0,93320.0,1.15525976]
[1736428698574,0.02999626,93321.0,93320.0,1.15425976]
[1736428698772,0.02999626,93321.0,93320.0,1.15525976]
[1736428698972,0.02999626,93321.0,93320.0,1.15425976]
[1736428699184,0.02999626,93321.0,93320.0,1.15525976]
[1736428699405,0.0001704,93362.0,93338.0,0.1]
[1736428699596,0.0001704,93362.0,93360.0,0.214223]
[1736428699597,0.00032066,93362.0,93360.0,0.214223]
[1736428699820,0.00032066,93362.0,93361.0,0.11225976]
[1736428701030,0.00032066,93362.0,93361.0,0.11333073]
[1736428702021,0.00032066,93362.0,93361.0,0.11333072]
[1736428702675,0.00032066,93362.0,93361.0,0.11225976]
[1736428702872,0.00032066,93362.0,93361.0,0.12125976]
[1736428704272,0.00032066,93362.0,93361.0,0.12725976]
[1736428705104,0.08122066,93362.0,93361.0,0.015]
[1736428705304,0.08122066,93362.0,93361.0,0.02296]
[1736428706401,0.08122066,93362.0,93361.0,0.01696]
[1736428706641,0.08122066,93362.0,93361.0,0.00796]
[1736428707455,0.08122066,93362.0,93361.0,0.01496]
[1736428707723,0.08122066,93362.0,93361.0,0.004]
[1736428707950,0.23122066,93362.0,93361.0,0.01196]
[1736428708200,0.23122066,93362.0,93361.0,0.00796]
[1736428708444,0.214243,93352.0,93340.0,0.214268]
[1736428708623,0.214243,93352.0,93341.0,0.10429976]
[1736428708865,0.214243,93352.0,93342.0,0.00796]
[1736428709123,0.214243,93352.0,93343.0,0.10429976]
[1736428709370,0.214238,93354.0,93343.0,0.10429976]
[1736428709619,0.21424,93353.0,93343.0,0.10429976]
[1736428709911,0.214258,93346.0,93343.0,0.10429976]
[1736428710180,0.214258,93346.0,93318.0,0.0769]
[1736428710181,0.214297,93328.0,93318.0,0.23990553]
[1736428710453,0.15,93344.0,93342.0,0.007]
[1736428710713,0.214293,93331.0,93319.0,0.10429976]
[1736428710974,0.214293,93331.0,93320.0,0.00796]
[1736428711181,0.214293,93331.0,93321.0,0.10429976]
[1736428711574,0.214293,93331.0,93321.0,0.10480123]
[1736428712540,0.214293,93331.0,93321.0,0.10780123]
[1736428713266,0.214293,93331.0,93322.0,0.00796]
[1736428713495,0.214293,93331.0,93323.0,0.10429976]
[1736428714372,0.081,93326.0,93321.0,0.00350147]
[1736428714574,0.081,93326.0,93321.0,0.00050147]
[1736428714746,0.081,93326.0,93323.0,0.004]
[1736428715169,0.214304,93325.0,93323.0,0.004]
[1736428715524,0.081,93326.0,93323.0,0.004]
[1736428715737,0.15,93334.0,93324.0,0.10429976]
[1736428715971,0.214286,93333.0,93324.0,0.10429976]
[1736428716174,0.15,93334.0,93324.0,0.10429976]
[1736428716322,0.17293738,93334.0,93324.0,0.10429976]
[1736428717608,0.428573,93333.0,93324.0,0.10929976]
[1736428718160,0.428573,93333.0,93324.0,0.11229976]
[1736428718766,0.428573,93333.0,93324.0,0.10929976]
[1736428719034,0.428573,93333.0,93324.0,0.11229976]
[1736428719174,0.428573,93333.0,93324.0,0.10729976]
[1736428719587,0.428573,93333.0,93324.0,0.10529976]
[1736428719782,0.428573,93333.0,93324.0,0.10729976]
[1736428720021,0.214294,93330.0,93324.0,0.10729976]
[1736428720246,0.214294,93330.0,93324.0,0.11229976]
[1736428720920,0.214294,93330.0,93324.0,0.10729976]
[1736428721129,0.214294,93330.0,93324.0,0.10429976]
[1736428721328,0.214294,93330.0,93324.0,0.11029976]
[1736428721513,0.214294,93330.0,93324.0,0.11429976]
[1736428724158,0.214294,93330.0,93324.0,0.10829976]
[1736428724361,0.214294,93330.0,93324.0,0.11029976]
[1736428724568,0.214294,93330.0,93324.0,0.11429976]
[1736428724769,0.428602,93327.0,93324.0,0.01]
[1736428724943,0.0785,93326.0,93325.0,0.00792]
[1736428725941,0.214304,93325.0,93324.0,0.004]
[1736428726153,0.364308,93324.0,93321.0,0.00050147]
[1736428726355,0.214311,93322.0,93321.0,0.00050147]
[1736428726532,0.444511,93322.0,93321.0,0.00842147]
[1736428727133,0.444511,93322.0,93321.0,0.00050147]
[1736428727539,0.54881076,93322.0,93321.0,0.00450147]
[1736428727967,0.54881076,93322.0,93321.0,0.00050147]
[1736428729517,0.28507139,93322.0,93321.0,0.00050147]
[1736428730152,0.49938239,93322.0,93321.0,0.00050147]
[1736428732801,0.60368215,93322.0,93321.0,0.00050147]
[1736428740039,0.44065,93305.0,93304.0,8.51e-05]
[1736428740258,0.48635,93305.0,93304.0,0.00815539]
[1736428740688,0.48635,93305.0,93304.0,0.00023539]
[1736428740911,0.36435,93305.0,93304.0,0.00023539]
[1736428741119,0.21435,93305.0,93304.0,0.00023539]
[1736428741755,0.443653,93305.0,93304.0,0.00815539]
[1736428741962,0.443653,93305.0,93304.0,0.00023539]
[1736428741963,0.44065,93305.0,93304.0,0.00023539]
[1736428742200,0.64577655,93305.0,93304.0,0.00223539]
[1736428742411,0.69147655,93305.0,93304.0,0.00223539]
[1736428742624,0.89577631,93305.0,93304.0,0.00223539]
[1736428742852,0.89535081,93305.0,93304.0,0.00223539]
[1736428743502,0.89835081,93305.0,93304.0,0.00223539]
[1736428743681,0.81249386,93305.0,93304.0,0.00223539]
[1736428744125,0.81249386,93305.0,93304.0,0.00023539]
[1736428745675,0.81249386,93305.0,93304.0,3.9e-07]
[1736428745676,0.81289515,93305.0,93304.0,3.9e-07]
[1736428746551,0.439492,93287.0,93286.0,0.00792]
[1736428746778,0.43831443,93287.0,93286.0,0.00792]
[1736428747411,0.48471443,93287.0,93286.0,0.00792]
[1736428747627,0.48471443,93287.0,93283.0,8.52e-05]
[1736428747628,0.364395,93286.0,93283.0,8.52e-05]
[1736428747834,0.24844786,93284.0,93283.0,8.52e-05]
[1736428748075,0.53214738,93284.0,93283.0,8.52e-05]
[1736428748301,0.46286786,93275.0,93272.0,8.51e-05]
[1736428748510,0.32939976,93274.0,93272.0,8.51e-05]
[1736428749366,0.364424,93273.0,93272.0,8.51e-05]
[1736428749574,0.46872376,93273.0,93272.0,8.51e-05]
[1736428750224,0.57302352,93273.0,93272.0,8.51e-05]
[1736428750437,0.67147138,93273.0,93272.0,8.51e-05]
[1736428750664,0.91977138,93273.0,93272.0,1e-07]
[1736428750880,0.92017444,93273.0,93272.0,1e-07]
[1736428751086,0.92417444,93273.0,93272.0,1e-07]
[1736428751564,0.92017444,93273.0,93272.0,1e-07]
[1736428752819,0.92317444,93273.0,93272.0,1e-07]
[1736428753032,0.92717444,93273.0,93272.0,1e-07]
[1736428753266,0.69742682,93273.0,93272.0,1e-07]
[1736428753483,0.54912376,93273.0,93272.0,1e-07]
[1736428753698,0.223424,93273.0,93272.0,0.0010001]
[1736428753906,0.223424,93273.0,93272.0,0.0088401]
[1736428754331,0.220424,93273.0,93272.0,0.0088401]
[1736428754552,0.216424,93273.0,93272.0,0.0078401]
[1736428754765,0.222424,93273.0,93272.0,0.0088401]
[1736428754969,0.220424,93273.0,93272.0,0.0088401]
[1736428755407,0.220424,93273.0,93272.0,0.0108401]
[1736428755853,0.220424,93273.0,93272.0,0.0088401]
[1736428756277,0.006,93273.0,93272.0,0.0088401]
[1736428756514,0.006,93273.0,93272.0,0.07885224]
[1736428756776,0.214393,93287.0,93280.0,0.00155214]
[1736428757019,0.01885963,93283.0,93280.0,0.00155214]
[1736428757225,0.428786,93287.0,93280.0,0.00155214]
[1736428757722,0.214383,93291.0,93282.0,0.00155214]
[1736428757723,0.15,93290.0,93282.0,0.00155214]